fUST/lending_fUST_20250527
["ID","MTS","AMOUNT","RATE_DAILY","PERIOD"]
[362471286,1748323849839,-603.78,0.00024584,2]
[362471287,1748323849849,-553.91,0.00024584,2]
[362471288,1748323849859,-555.59,0.00024584,2]
[362471289,1748323849870,-592.86,0.00024584,2]
[362471290,1748323849879,-430.0,0.00024585,2]
[362471291,1748323849889,-84895.77843595,0.00024588,2]
[362471292,1748323850018,-297.20942763,0.00019178,2]
[362471293,1748323850105,-132.79057237,0.00019178,2]
[362471294,1748323850115,-249.2101303,0.000199,2]
[362471295,1748323850124,-159.19929733,0.00024033,2]
[362471296,1748323850657,-299.02576938,0.00024033,2]
[362471297,1748324610006,186.013361,0.00013699,2]
[362471330,1748324733112,-159.0,0.00016438,3]
[362471331,1748324733135,-180.273205,0.0001755,2]
[362471332,1748324733157,-255.2616741,0.00017563,2]
[362471333,1748324733179,-300.0,0.00018092,2]
[362471334,1748324733204,-300.0,0.00018092,2]
[362471335,1748324733228,-1200.0,0.00018092,2]
[362471336,1748324733251,-500.0,0.00018093,2]
[362471337,1748324733275,-375.24568253,0.00018093,2]
[362471344,1748324828101,-160.0,0.00016438,3]
[362471345,1748324828126,-300.0,0.00018091,2]
[362471346,1748324828147,-500.0,0.00018092,2]
[362471347,1748324828172,-325.91989616,0.00018092,2]
[362471348,1748324828195,-336.27730296,0.00018092,2]
[362471349,1748324829081,-163.72269704,0.00018092,2]
[362471350,1748324829102,-500.0,0.00018092,2]
[362471351,1748324829127,-500.0,0.00018092,2]
[362471352,1748324829155,-3.11564848,0.00018092,2]
[362471353,1748324831097,-496.88435152,0.00018092,2]
[362471354,1748324831120,-329.75525095,0.00018092,2]
[362471355,1748324831143,-500.0,0.00018092,2]
[362471356,1748324831165,-43.03319813,0.00018092,2]
[362471357,1748324837089,-130.94931477,0.00018092,2]
[362471358,1748324837115,-500.0,0.00018092,2]
[362471359,1748324837138,-500.0,0.00018092,2]
[362471360,1748324837309,-296.01022893,0.00018092,2]
[362471361,1748324838098,-203.98977107,0.00018092,2]
[362471362,1748324838128,-257.40077297,0.00018092,2]
[362471363,1748324849128,-242.59922703,0.00018092,2]
[362471364,1748324849152,-500.0,0.00018092,2]
[362471365,1748324849175,-500.0,0.00018092,2]
[362471366,1748324849199,-500.0,0.00018092,2]
[362471367,1748324849222,-500.0,0.00018092,2]
[362471368,1748324849246,-500.0,0.00018092,2]
[362471369,1748324849269,-500.0,0.00018092,2]
[362471370,1748324849291,-500.0,0.00018092,2]
[362471371,1748324849313,-500.0,0.00018092,2]
[362471372,1748324849335,-500.0,0.00018092,2]
[362471373,1748324849358,-500.0,0.00018092,2]
[362471374,1748324849380,-500.0,0.00018092,2]
[362471375,1748324849403,-196.03840495,0.00018092,2]
[362471376,1748324945289,-300.0,0.00018092,2]
[362471377,1748324945313,-300.0,0.00018093,2]
[362471378,1748324945339,-500.0,0.00018094,2]
[362471379,1748324945364,-500.0,0.00018094,2]
[362471380,1748324945386,-484.86306395,0.00018094,2]
[362471381,1748324945408,-500.0,0.00018094,2]
[362471382,1748324945432,-500.0,0.00018094,2]
[362471383,1748324945454,-500.0,0.00018094,2]
[362471384,1748324945476,-500.0,0.00018094,2]
[362471385,1748324945500,-500.0,0.00018094,2]
[362471386,1748324945522,-500.0,0.00018094,2]
[362471387,1748324945546,-500.0,0.00018094,2]
[362471388,1748324945569,-500.0,0.00018094,2]
[362471389,1748324945595,-500.0,0.00018094,2]
[362471390,1748324945619,-500.0,0.00018094,2]
[362471391,1748324945641,-500.0,0.00018094,2]
[362471392,1748324945663,-500.0,0.00018094,2]
[362471393,1748324945686,-500.0,0.00018094,2]
[362471394,1748324945709,-500.0,0.00018094,2]
[362471395,1748324945732,-500.0,0.00018094,2]
[362471396,1748324945756,-500.0,0.00018094,2]
[362471397,1748324945780,-500.0,0.00018094,2]
[362471398,1748324945802,-500.0,0.00018094,2]
[362471399,1748324945825,-488.34693565,0.00018094,2]
[362471400,1748324945853,-500.0,0.00018094,2]
[362471401,1748324945877,-500.0,0.00018094,2]
[362471402,1748324945901,-22721.1785421,0.00018095,2]
[362471403,1748324945923,-2114.0930264,0.00018357,2]
[362471404,1748324945945,-2230.9988302,0.00018495,2]
[362471405,1748324945968,-162.66510166,0.00018792,2]
[362471406,1748324945990,-2773.46026514,0.00019076,2]
[362471407,1748324946014,-500.0,0.00019175,2]
[362471408,1748324946037,-589.12345373,0.00019175,2]
[362471409,1748324946062,-500.0,0.00019175,2]
[362471410,1748324946088,-484.69385875,0.00019175,2]
[362471411,1748324946111,-84300.25733507,0.00019176,10]
[362471412,1748324952102,-139036.85657719,0.00019176,10]
[362471423,1748325032419,-529.07606967,0.00019076,2]
[362471424,1748325032429,-300.0,0.00019175,2]
[362471425,1748325032439,-151.0,0.00019175,2]
[362471426,1748325032449,-500.0,0.00019175,2]
[362471428,1748325032459,-500.0,0.00019175,2]
[362471430,1748325032469,-220.9274373,0.00019175,2]
[362471432,1748325032479,-1901.44273736,0.00019176,10]
[362471459,1748325038379,-151.00000001,0.00019175,2]
[362471460,1748325038389,-300.0,0.00019175,2]
[362471461,1748325038398,-1567.91265115,0.00019176,10]
[362471462,1748325038411,-4164.42490134,0.00019176,10]
[362471464,1748325038421,-12767.32325452,0.00019176,10]
[362471466,1748325038433,-424.44298731,0.00019176,10]
[362471467,1748325038444,-767.5339905,0.00019176,10]
[362471468,1748325038456,-65385.76102112,0.00019176,10]
[362471469,1748325038467,-652.66070144,0.00019176,10]
[362471473,1748325040651,-6741.60999995,0.00019176,10]
[362471475,1748325040812,-51.265616,0.00019176,10]
[362471480,1748325043625,-1231.79059901,0.00019176,10]
[362471481,1748325043637,-11194.45378137,0.00019176,10]
[362471484,1748325046504,-415378.93487556,0.00019176,10]
[362471485,1748325046657,-21805.6261401,0.00019176,10]
[362471486,1748325046673,-3611.02576938,0.00019176,10]
[362471487,1748325046687,-3036.65211536,0.00019176,10]
[362471489,1748325046698,-272.19120742,0.00019176,10]
[362471496,1748325881062,344.65,0.00016,2]
[362471498,1748325952126,-160.0,0.00016438,3]
[362471499,1748325952151,-979.1089753,0.00017896,2]
[362471500,1748326013003,-1247.0,0.00017603,2]
[362471501,1748326025091,-3690.44052038,0.00017603,2]
[362471502,1748326030190,-62.55947962,0.00017603,2]
[362471503,1748326030214,-300.0,0.00017895,2]
[362471504,1748326030237,-6005.4213062,0.00017896,2]
[362471505,1748326030261,-165.8000442,0.00017987,2]
[362471506,1748326030283,-212.217175,0.00018084,2]
[362471507,1748326030304,-206.0056583,0.00018325,2]
[362471508,1748326030329,-261.50803206,0.000189,2]
[362471509,1748326030359,-212.98068155,0.00019,2]
[362471510,1748326030381,-184.89735102,0.00019076,2]
[362471511,1748326030404,-300.0,0.00019098,2]
[362471512,1748326030426,-1374.23199934,0.00019099,2]
[362471513,1748326030447,-300.0,0.00019099,2]
[362471514,1748326030469,-300.0,0.00019099,2]
[362471515,1748326030491,-584.0,0.00019099,2]
[362471516,1748326030513,-70.15372084,0.00019099,2]
[362471517,1748326031087,-457.88267623,0.00018652,2]
[362471518,1748326031110,-429.84627916,0.00019099,2]
[362471519,1748326031135,-500.0,0.00019099,2]
[362471520,1748326031159,-500.0,0.00019099,2]
[362471521,1748326031184,-500.0,0.00019099,2]
[362471522,1748326031207,-500.0,0.00019099,2]
[362471523,1748326031230,-439.72126762,0.00019099,2]
[362471524,1748326031256,-500.0,0.00019099,2]
[362471525,1748326031280,-500.0,0.00019099,2]
[362471526,1748326031305,-500.0,0.00019099,2]
[362471527,1748326031335,-500.0,0.00019099,2]
[362471528,1748326031359,-500.0,0.00019099,2]
[362471529,1748326031382,-509.89503127,0.00019099,2]
[362471530,1748326031405,-565.82614476,0.00019099,2]
[362471531,1748326031426,-500.0,0.00019099,2]
[362471532,1748326031447,-604.67800015,0.00019099,2]
[362471533,1748326031469,-500.0,0.00019099,2]
[362471534,1748326031498,-500.0,0.00019099,2]
[362471535,1748326031521,-534.27524967,0.00019099,2]
[362471536,1748326031544,-551.49585318,0.00019099,2]
[362471537,1748326031568,-500.0,0.00019099,2]
[362471538,1748326031596,-500.0,0.00019099,2]
[362471539,1748326031621,-500.0,0.00019099,2]
[362471540,1748326031646,-340.94618982,0.00019099,2]
[362471541,1748326031671,-484.76398226,0.00019099,2]
[362471542,1748326031695,-2484.74125206,0.000191,2]
[362471543,1748326049095,-157.0,0.00016438,3]
[362471544,1748326049119,-900.76223263,0.000191,2]
[362471592,1748326238947,-1656.0079918,0.00018177,2]
[362471593,1748326238967,-1973.8798242,0.00018177,2]
[362471594,1748326238977,-278.89570088,0.000189,2]
[362471595,1748326238988,-1277.62198851,0.000191,2]
[362471596,1748326238998,-160.0,0.000191,2]
[362471597,1748326239008,-300.0,0.00019174,2]
[362471598,1748326239017,-215.45691177,0.00019175,2]
[362471599,1748326239027,-568.83165451,0.00019175,2]
[362471600,1748326239037,-160.0,0.00019175,2]
[362471601,1748326239052,-227.94398369,0.00019175,2]
[362471602,1748326239063,-178.29755557,0.00019175,2]
[362471603,1748326239073,-451.75846053,0.00019175,2]
[362471604,1748326239083,-226.0305833,0.00019175,2]
[362471605,1748326239092,-185767.32727763,0.00019176,10]
[362471688,1748326241024,-400.0,0.00019176,10]
[362471861,1748326246716,-300.0,0.00019174,2]
[362471862,1748326246726,-1379.3,0.00019176,10]
[362471863,1748326332652,161.736534,0.00013699,2]
[362471865,1748326476243,2000.0,0.00021,30]
[362471866,1748326503160,524.80418512,0.00016,2]
[362471867,1748326802379,6397.05067206,0.00016,2]
[362471868,1748326802403,17902.2864,0.00016,2]
[362471869,1748326802426,17902.2864,0.00016,2]
[362471870,1748326802448,17902.2864,0.00016,2]
[362471871,1748326802472,17902.2864,0.00016,2]
[362471872,1748326802496,1603.196571,0.00016,2]
[362471873,1748326803367,166.03197364,0.00016,2]
[362471874,1748326954307,-450.0,0.00024,120]
[362471877,1748327236097,-2397.89060776,0.00016274,2]
[362471878,1748327253106,-2602.10939224,0.00016274,2]
[362471879,1748327253132,-159.0,0.00016438,3]
[362471880,1748327253157,-270.73383996,0.00017236,2]
[362471881,1748327253182,-596.93286524,0.00017302,2]
[362471882,1748327253209,-300.0,0.00017676,2]
[362471883,1748327253234,-300.0,0.00017676,2]
[362471884,1748327253258,-4060.40954968,0.00017677,2]
[362471888,1748327345106,-5000.0,0.00016175,2]
[362471889,1748327345128,-160.0,0.00016438,3]
[362471890,1748327345150,-300.0,0.00016747,2]
[362471891,1748327345170,-6379.1776214,0.00016748,2]
[362471892,1748327355106,-3099.50440209,0.00016748,2]
[362471893,1748327360101,-8311.71481721,0.00016748,2]
[362471894,1748327360122,-41149.27451679,0.00017,2]
[362471895,1748327360152,-41565.3400737,0.00017,2]
[362471896,1748327360174,-1208.15732432,0.00017677,2]
[362471897,1748327360195,-169.73334374,0.00017718,2]
[362471898,1748327360216,-500.0,0.00017767,2]
[362471899,1748327360238,-500.0,0.00017767,2]
[362471900,1748327360261,-500.0,0.00017767,2]
[362471901,1748327360285,-500.0,0.00017767,2]
[362471902,1748327360307,-500.0,0.00017767,2]
[362471903,1748327360329,-500.0,0.00017767,2]
[362471904,1748327360353,-500.0,0.00017767,2]
[362471905,1748327360377,-500.0,0.00017767,2]
[362471906,1748327360400,-500.0,0.00017767,2]
[362471907,1748327360422,-500.0,0.00017767,2]
[362471908,1748327360446,-500.0,0.00017767,2]
[362471909,1748327360469,-500.0,0.00017767,2]
[362471910,1748327360491,-222.02929485,0.00017767,2]
[362471911,1748327360514,-500.0,0.00017767,2]
[362471912,1748327360537,-500.0,0.00017767,2]
[362471913,1748327360559,-535.30225586,0.00017767,2]
[362471914,1748327360583,-500.0,0.00017767,2]
[362471915,1748327360607,-500.0,0.00017767,2]
[362471916,1748327360632,-342.75235713,0.00017767,2]
[362471917,1748327360662,-500.0,0.00017767,2]
[362471918,1748327360686,-500.0,0.00017767,2]
[362471919,1748327360708,-3138.75445194,0.00017768,2]
[362471920,1748327360735,-500.0,0.00017768,2]
[362471921,1748327360757,-159.18416385,0.00017768,2]
[362471922,1748327360779,-500.0,0.00017768,2]
[362471923,1748327360801,-292.7971971,0.00017768,2]
[362471924,1748327360824,-500.0,0.00017768,2]
[362471925,1748327360845,-500.0,0.00017768,2]
[362471926,1748327360866,-300.0,0.00017768,2]
[362471927,1748327360888,-300.0,0.00017768,2]
[362471928,1748327360910,-1200.0,0.00017768,2]
[362471929,1748327360932,-24900.0,0.00017769,2]
[362471930,1748327360954,-180.7918886,0.00017818,2]
[362471931,1748327360978,-232.672076,0.00017847,2]
[362471932,1748327361001,-756.5808496,0.00017888,2]
[362471933,1748327361023,-2583.90785526,0.00018,2]
[362471934,1748327361044,-15364.72325352,0.00018,2]
[362471935,1748327361066,-154485.31342916,0.00018149,2]
[362471936,1748327361088,-3274.5891381,0.00018295,2]
[362471937,1748327361110,-420.0,0.00018296,2]
[362471938,1748327361133,-489.42065881,0.00018689,2]
[362471939,1748327361194,5000.0,0.0001658,2]
[362471940,1748327365529,218.67958535,0.000169,2]
[362471941,1748327370569,218.67958535,0.00018195,2]
[362472079,1748327377918,5000.0,0.00018711,2]
[362472222,1748327383187,176.74935,0.00013699,2]
[362472224,1748327392554,4300.0,0.00024658,120]
[362472225,1748327393175,5000.0,0.00018711,2]
[362472227,1748327406628,156.587,0.00018138,2]
[362472228,1748327407281,162.380719,0.00018193,2]
[362472229,1748327408001,168.3888056,0.00018248,2]
[362472230,1748327408759,174.61919141,0.00018303,2]
[362472231,1748327408994,5000.0,0.00018711,2]
[362472232,1748327409446,181.08010149,0.00018358,2]
[362472233,1748327410081,232.28505105,0.00018413,2]
[362472234,1748327416017,398.08994401,0.00017767,2]
[362472235,1748327416045,500.0,0.00017767,2]
[362472236,1748327416073,500.0,0.00017767,2]
[362472237,1748327416101,460.44531479,0.00017767,2]
[362472238,1748327416131,500.0,0.00017767,2]
[362472239,1748327416157,428.56114188,0.00017767,2]
[362472240,1748327416185,281.22724636,0.00017767,2]
[362472241,1748327416214,500.0,0.00017767,2]
[362472242,1748327416243,500.0,0.00017767,2]
[362472243,1748327416272,500.0,0.00017767,2]
[362472244,1748327416300,410.2792125,0.00017767,2]
[362472245,1748327416329,500.0,0.00017767,2]
[362472246,1748327416360,500.0,0.00017767,2]
[362472247,1748327416399,500.0,0.00017767,2]
[362472248,1748327416429,473.51345712,0.00017767,2]
[362472249,1748327425318,5000.0,0.00018711,2]
[362472294,1748327431872,-453.50479109,0.000189,2]
[362472295,1748327431882,-224.99301087,0.00018901,2]
[362472296,1748327431891,-502.18358268,0.00018917,2]
[362472297,1748327431901,-300.0,0.00018989,2]
[362472298,1748327431912,-300.0,0.00018989,2]
[362472299,1748327431922,-300.0,0.00018989,2]
[362472300,1748327431932,-1200.0,0.00018989,2]
[362472302,1748327431941,-9166.59787288,0.0001899,2]
[362472306,1748327431981,-480.44497677,0.0001899,2]
[362472316,1748327437852,-11932.93883706,0.0001899,2]
[362472317,1748327437862,-234.00346128,0.00019,2]
[362472318,1748327437873,-234.00346106,0.00019,2]
[362472319,1748327437883,-234.00346106,0.00019,2]
[362472320,1748327437894,-234.00346106,0.00019,2]
[362472321,1748327437904,-234.00346106,0.00019,2]
[362472322,1748327437913,-234.00346106,0.00019,2]
[362472323,1748327437923,-234.00346106,0.00019,2]
[362472324,1748327437933,-234.00346106,0.00019,2]
[362472325,1748327437943,-184.89735102,0.00019076,2]
[362472326,1748327437953,-234.00346106,0.00019107,2]
[362472327,1748327437963,-3082.61209575,0.00019151,2]
[362472328,1748327437975,-811.6638371,0.00019151,2]
[362472329,1748327437985,-2867.79489392,0.0001917,2]
[362472349,1748327440998,5000.0,0.0001881,2]
[362472358,1748327445875,-7393.6257324,0.00019107,2]
[362472359,1748327445885,-300.0,0.0001915,2]
[362472360,1748327445895,-889.1,0.00019168,3]
[362472361,1748327445905,-2132.20510608,0.0001917,2]
[362472362,1748327445915,-5000.0,0.0001917,2]
[362472363,1748327445925,-5000.0,0.0001917,2]
[362472364,1748327445935,-5000.0,0.0001917,2]
[362472365,1748327445945,-500.0,0.00019173,2]
[362472366,1748327445954,-421.40966099,0.00019173,2]
[362472367,1748327445965,-428.05406353,0.00019173,2]
[362472368,1748327445974,-596.29445285,0.00019173,2]
[362472369,1748327445984,-500.96634837,0.00019173,2]
[362472370,1748327445994,-500.0,0.00019173,2]
[362472371,1748327446004,-500.0,0.00019173,2]
[362472372,1748327446014,-500.0,0.00019173,2]
[362472373,1748327446023,-500.0,0.00019173,2]
[362472374,1748327446033,-327.12378332,0.00019173,2]
[362472375,1748327446042,-316.99456102,0.00019173,2]
[362472376,1748327446052,-500.0,0.00019173,2]
[362472377,1748327446061,-500.0,0.00019173,2]
[362472378,1748327446072,-213.50676953,0.00019173,2]
[362472379,1748327446081,-500.0,0.00019173,2]
[362472380,1748327446091,-201.69474406,0.00019173,2]
[362472381,1748327446101,-444.69763855,0.00019173,2]
[362472382,1748327446110,-500.0,0.00019173,2]
[362472383,1748327446119,-178.94354986,0.00019173,2]
[362472384,1748327446129,-153.60916231,0.00019173,2]
[362472385,1748327446139,-500.0,0.00019173,2]
[362472386,1748327446150,-500.0,0.00019173,2]
[362472387,1748327446159,-502.35257725,0.00019173,2]
[362472388,1748327446169,-500.42659175,0.00019173,2]
[362472389,1748327446179,-500.0,0.00019173,2]
[362472390,1748327446189,-500.0,0.00019173,2]
[362472391,1748327446198,-500.0,0.00019173,2]
[362472392,1748327446208,-316.67980357,0.00019173,2]
[362472393,1748327459000,500.0,0.00017767,2]
[362472394,1748327459029,500.0,0.00017767,2]
[362472395,1748327459055,500.0,0.00017767,2]
[362472396,1748327459082,500.0,0.00017768,2]
[362472397,1748327459111,500.0,0.00017767,2]
[362472398,1748327459137,500.0,0.00017767,2]
[362472399,1748327459166,500.0,0.00017767,2]
[362472400,1748327459192,291.15261491,0.00017767,2]
[362472401,1748327459231,522.5193545,0.00017767,2]
[362472402,1748327459260,221.58369865,0.00017767,2]
[362472409,1748327602859,10000.0,0.00024658,120]
[362472552,1748327807037,2616.85796174,0.00016,2]
[362473667,1748328185995,13516.19989362,0.00015395,2]
[362473668,1748328186020,17902.2864,0.00015395,2]
[362473669,1748328186048,11096.99295598,0.00015395,2]
[362473670,1748328211721,5000.0,0.00016,2]
[362473671,1748328214160,1805.29344402,0.00015716,2]
[362473672,1748328214182,7923.16044768,0.00015716,2]
[362473673,1748328228756,5000.0,0.00016,2]
[362473674,1748328240186,2063007.98625931,0.00024658,120]
[362473675,1748328245107,4979.12595232,0.00016,2]
[362473676,1748328245132,20.87404768,0.00016,2]
[362473677,1748328260554,5000.0,0.00016,2]
[362473678,1748328275996,5000.0,0.00016,2]
[362473679,1748328291871,5000.0,0.00016,2]
[362473681,1748328307860,2881.41235232,0.00016,2]
[362473682,1748328307887,2118.58764768,0.00016,2]
[362473683,1748328311922,330.23172362,0.00015845,2]
[362473684,1748328323243,5000.0,0.00016,2]
[362473685,1748328339083,5000.0,0.00016,2]
[362473686,1748328354290,442.16132629,0.00016,2]
[362473687,1748328361089,673.1795953,0.00015334,2]
[362473688,1748328394209,922242.01374069,0.00024658,120]
[362473689,1748328417128,-197.8669042,0.00016218,2]
[362473690,1748328417151,-1345.53632676,0.00016219,2]
[362473691,1748328417171,-3082.66116622,0.00016319,2]
[362473692,1748328431089,-300.0,0.00016318,2]
[362473693,1748328431112,-80.26623553,0.00016319,2]
[362473694,1748328432870,176.74935,0.00013699,2]
[362473697,1748328436096,-1338.4817438,0.00016319,2]
[362473698,1748328436345,-2198.41072277,0.00016319,2]
[362473699,1748328441107,-17570.46662687,0.00016319,2]
[362473700,1748328454166,-215.24796236,0.00016319,2]
[362473701,1748328484389,2939073.20583789,0.00021918,30]
[362473702,1748328545085,-300.0,0.00016317,2]
[362473703,1748328545106,-500.0,0.00016318,2]
[362473704,1748328545128,-500.0,0.00016318,2]
[362473705,1748328545151,-500.0,0.00016318,2]
[362473706,1748328545172,-500.0,0.00016318,2]
[362473707,1748328545197,-500.0,0.00016318,2]
[362473708,1748328545219,-500.0,0.00016318,2]
[362473709,1748328545242,-500.0,0.00016318,2]
[362473710,1748328545266,-500.0,0.00016318,2]
[362473711,1748328545287,-500.0,0.00016318,2]
[362473712,1748328545309,-189.43031885,0.00016318,2]
[362473713,1748328545331,-500.0,0.00016318,2]
[362473714,1748328545353,-500.0,0.00016318,2]
[362473715,1748328545376,-500.0,0.00016318,2]
[362473716,1748328545399,-500.0,0.00016318,2]
[362473717,1748328545420,-500.0,0.00016318,2]
[362473718,1748328545442,-500.0,0.00016318,2]
[362473719,1748328545463,-500.0,0.00016318,2]
[362473720,1748328545484,-446.01991086,0.00016318,2]
[362473721,1748328545505,-500.0,0.00016318,2]
[362473722,1748328545527,-500.0,0.00016318,2]
[362473723,1748328545550,-500.0,0.00016318,2]
[362473724,1748328545571,-500.0,0.00016318,2]
[362473725,1748328545593,-500.0,0.00016318,2]
[362473726,1748328545614,-500.0,0.00016318,2]
[362473727,1748328545636,-500.0,0.00016318,2]
[362473728,1748328545659,-500.0,0.00016318,2]
[362473729,1748328545683,-500.0,0.00016318,2]
[362473730,1748328545706,-500.0,0.00016318,2]
[362473731,1748328545731,-500.0,0.00016318,2]
[362473732,1748328545754,-267.06218398,0.00016318,2]
[362473733,1748328545776,-622.38258021,0.00016318,2]
[362473734,1748328545798,-500.0,0.00016318,2]
[362473735,1748328545821,-527.36386067,0.00016318,2]
[362473736,1748328545845,-500.0,0.00016318,2]
[362473737,1748328545867,-500.0,0.00016318,2]
[362473738,1748328545891,-500.0,0.00016318,2]
[362473739,1748328545914,-567.7837535,0.00016318,2]
[362473740,1748328545937,-500.0,0.00016318,2]
[362473741,1748328545961,-242.44895485,0.00016318,2]
[362473742,1748328545983,-500.0,0.00016318,2]
[362473743,1748328546005,-500.0,0.00016318,2]
[362473744,1748328546176,-500.0,0.00016318,2]
[362473745,1748328546201,-500.0,0.00016318,2]
[362473746,1748328546223,-500.0,0.00016318,2]
[362473747,1748328546248,-500.0,0.00016318,2]
[362473748,1748328546271,-500.0,0.00016318,2]
[362473749,1748328546294,-500.0,0.00016318,2]
[362473750,1748328546317,-500.0,0.00016318,2]
[362473751,1748328546339,-500.0,0.00016318,2]
[362473752,1748328546363,-500.0,0.00016318,2]
[362473753,1748328546386,-500.0,0.00016318,2]
[362473754,1748328546409,-500.0,0.00016318,2]
[362473755,1748328546433,-500.0,0.00016318,2]
[362473756,1748328546455,-500.0,0.00016318,2]
[362473757,1748328546478,-500.0,0.00016318,2]
[362473758,1748328546502,-500.0,0.00016318,2]
[362473759,1748328546524,-500.0,0.00016318,2]
[362473760,1748328546546,-500.0,0.00016318,2]
[362473761,1748328546569,-500.0,0.00016318,2]
[362473762,1748328546592,-500.0,0.00016318,2]
[362473763,1748328546615,-500.0,0.00016318,2]
[362473764,1748328546637,-500.0,0.00016318,2]
[362473765,1748328546660,-500.0,0.00016318,2]
[362473766,1748328546681,-500.0,0.00016318,2]
[362473767,1748328546704,-500.0,0.00016318,2]
[362473768,1748328546727,-500.0,0.00016318,2]
[362473769,1748328546749,-500.0,0.00016318,2]
[362473770,1748328546772,-500.0,0.00016318,2]
[362473771,1748328546795,-500.0,0.00016318,2]
[362473772,1748328546819,-500.0,0.00016318,2]
[362473773,1748328546842,-500.0,0.00016318,2]
[362473774,1748328546866,-500.0,0.00016318,2]
[362473775,1748328546905,-500.0,0.00016318,2]
[362473776,1748328546933,-500.0,0.00016318,2]
[362473777,1748328546959,-500.0,0.00016318,2]
[362473778,1748328546984,-500.0,0.00016318,2]
[362473779,1748328547009,-500.0,0.00016318,2]
[362473780,1748328547032,-500.0,0.00016318,2]
[362473781,1748328547057,-500.0,0.00016318,2]
[362473782,1748328547085,-500.0,0.00016318,2]
[362473783,1748328547110,-500.0,0.00016318,2]
[362473784,1748328547133,-500.0,0.00016318,2]
[362473785,1748328547156,-500.0,0.00016318,2]
[362473786,1748328547179,-500.0,0.00016318,2]
[362473787,1748328547203,-500.0,0.00016318,2]
[362473788,1748328547226,-500.0,0.00016318,2]
[362473789,1748328547249,-500.0,0.00016318,2]
[362473790,1748328547271,-500.0,0.00016318,2]
[362473791,1748328547293,-500.0,0.00016318,2]
[362473792,1748328547314,-500.0,0.00016318,2]
[362473793,1748328547336,-500.0,0.00016318,2]
[362473794,1748328547358,-500.0,0.00016318,2]
[362473795,1748328547380,-500.0,0.00016318,2]
[362473796,1748328547402,-500.0,0.00016318,2]
[362473797,1748328547425,-500.0,0.00016318,2]
[362473798,1748328547448,-500.0,0.00016318,2]
[362473799,1748328547471,-500.0,0.00016318,2]
[362473800,1748328547494,-500.0,0.00016318,2]
[362473801,1748328547517,-500.0,0.00016318,2]
[362473802,1748328547541,-500.0,0.00016318,2]
[362473803,1748328547566,-500.0,0.00016318,2]
[362473804,1748328547590,-500.0,0.00016318,2]
[362473805,1748328547619,-500.0,0.00016318,2]
[362473806,1748328547645,-500.0,0.00016318,2]
[362473807,1748328547670,-500.0,0.00016318,2]
[362473808,1748328547694,-500.0,0.00016318,2]
[362473809,1748328547717,-500.0,0.00016318,2]
[362473810,1748328547741,-500.0,0.00016318,2]
[362473811,1748328547764,-500.0,0.00016318,2]
[362473812,1748328547787,-500.0,0.00016318,2]
[362473813,1748328547809,-500.0,0.00016318,2]
[362473814,1748328547831,-500.0,0.00016318,2]
[362473815,1748328547854,-500.0,0.00016318,2]
[362473816,1748328547876,-500.0,0.00016318,2]
[362473817,1748328547899,-500.0,0.00016318,2]
[362473818,1748328547922,-500.0,0.00016318,2]
[362473819,1748328547945,-500.0,0.00016318,2]